lending/lending_fUSD_20250318
["ID","MTS","AMOUNT","RATE_DAILY","PERIOD"]
[356325476,1742278232281,-500.0,9.5e-05,2]
[356325477,1742278232291,-500.0,9.5e-05,2]
[356325478,1742278232300,-1707.17908529,9.506e-05,2]
[356325479,1742278232309,-150.0,9.66e-05,2]
[356325480,1742278232319,-5436.08975436,9.66e-05,2]
[356325481,1742278232328,-150.99,9.67e-05,2]
[356325482,1742278232337,-4497.87,9.67e-05,2]
[356325483,1742278232346,-341.1695615,9.7e-05,2]
[356325484,1742278232356,-579.62433198,9.705e-05,2]
[356325485,1742278232365,-170.51,9.724e-05,2]
[356325486,1742278232374,-150.0,9.788e-05,2]
[356325487,1742278232384,-150.0,9.807e-05,2]
[356325488,1742278232394,-258.23644727,9.815e-05,2]
[356325489,1742278232404,-150.0,9.818e-05,2]
[356325490,1742278232413,-250.0,9.82e-05,2]
[356325491,1742278232423,-150.0,9.82e-05,2]
[356325492,1742278232432,-150.0,9.852e-05,2]
[356325493,1742278232441,-978.107,9.883e-05,2]
[356325494,1742278232451,-3377.80454344,9.9e-05,2]
[356325495,1742278232463,-1622.19545656,9.9e-05,2]
[356325496,1742278232473,-4477.80454334,9.9e-05,2]
[356325497,1742278232485,-522.19545666,9.9e-05,2]
[356325498,1742278232496,-2500.0,9.9e-05,2]
[356325499,1742278232504,-2857.80454334,9.9e-05,2]
[356325500,1742278232516,-2142.19545666,9.9e-05,2]
[356325501,1742278232525,-500.0,9.95e-05,2]
[356325502,1742278232535,-500.0,9.95e-05,2]
[356325503,1742278232545,-407.80454834,9.95e-05,2]
[356325504,1742278232558,-92.19545166,9.95e-05,2]
[356325505,1742278232568,-500.0,9.95e-05,2]
[356325506,1742278232577,-500.0,9.95e-05,2]
[356325507,1742278232585,-207.80454834,9.95e-05,2]
[356325508,1742278232628,-263.73385166,9.95e-05,2]
[356325509,1742278232637,-291.0,9.97e-05,2]
[356325510,1742278232647,-8865.0,9.973e-05,2]
[356325511,1742278232657,-3678.1,9.973e-05,2]
[356325513,1742278232666,-150.222,9.99e-05,2]
[356325515,1742278232676,-229.624,9.99e-05,2]
[356325517,1742278232685,-200.0,9.99e-05,2]
[356325518,1742278232693,-500.0,9.999e-05,2]
[356325519,1742278232703,-631.53384486,9.999e-05,2]
[356325520,1742278232712,-631.53384486,9.999e-05,2]
[356325521,1742278232721,-631.53384486,9.999e-05,2]
[356325522,1742278232730,-631.53384486,9.999e-05,2]
[356325523,1742278232740,-631.53384486,9.999e-05,2]
[356325524,1742278232750,-631.53384486,9.999e-05,2]
[356325525,1742278232759,-631.53384486,9.999e-05,2]
[356325526,1742278232769,-631.53384486,9.999e-05,2]
[356325527,1742278232778,-631.53384486,9.999e-05,2]
[356325528,1742278232789,-631.53384486,9.999e-05,2]
[356325529,1742278232798,-631.53384486,9.999e-05,2]
[356325530,1742278232808,-631.53384486,9.999e-05,2]
[356325531,1742278232817,-631.53384486,9.999e-05,2]
[356325532,1742278232826,-631.53384486,9.999e-05,2]
[356325533,1742278232835,-631.53384486,9.999e-05,2]
[356325534,1742278232844,-631.53384486,9.999e-05,2]
[356325535,1742278232853,-631.53384486,9.999e-05,2]
[356325536,1742278232863,-631.53384486,9.999e-05,2]
[356325537,1742278232872,-663.11053709,9.999e-05,2]
[356325538,1742278232881,-663.11053709,9.999e-05,2]
[356325539,1742278232891,-663.11053709,9.999e-05,2]
[356325540,1742278232900,-663.11053709,9.999e-05,2]
[356325541,1742278232910,-663.11053709,9.999e-05,2]
[356325542,1742278232919,-663.11053709,9.999e-05,2]
[356325543,1742278232929,-663.11053709,9.999e-05,2]
[356325544,1742278232938,-663.11053709,9.999e-05,2]
[356325545,1742278232948,-663.11053709,9.999e-05,2]
[356325546,1742278232958,-663.11053709,9.999e-05,2]
[356325547,1742278232968,-663.11053709,9.999e-05,2]
[356325548,1742278232978,-1127.2879131,9.999e-05,2]
[356325549,1742278232988,-568.0,0.0001,2]
[356325550,1742278232999,-159.35901137,0.0001,2]
[356325551,1742278233009,-29244.15334589,0.0001,2]
[356325552,1742278233019,-201661.8313911,0.0001,2]
[356325553,1742278233028,-150.50812038,0.0001,2]
[356325554,1742278233038,-215.25398716,0.0001,2]
[356325555,1742278233048,-151820.85110382,0.0001,2]
[356325556,1742278233058,-1335396.62177869,0.0001,2]
[356325569,1742278237874,-150.99,9.67e-05,2]
[356325570,1742278237884,-16454.51,0.0001,2]
[356325571,1742278237987,-91107.70139471,0.0001,2]
[356325614,1742278240317,-150.0,9.887e-05,2]
[356325615,1742278240327,-313.72725999,0.0001,2]
[356325616,1742278240339,-260.27274001,0.0001,2]
[356325617,1742278240348,-46.67169231,0.0001,2]
[356325618,1742278240418,-150.0,9.795e-05,2]
[356325619,1742278240428,-150.0,9.831e-05,2]
[356325620,1742278240438,-81.28266465,9.859e-05,2]
[356325621,1742278240601,-150.0,9.807e-05,2]
[356325622,1742278240610,-150.0,9.812e-05,2]
[356325623,1742278240620,-68.71733535,9.859e-05,2]
[356325624,1742278240629,-150.0,9.914e-05,2]
[356325625,1742278240638,-150.0,9.942e-05,2]
[356325626,1742278240648,-150.0,9.982e-05,2]
[356325627,1742278240658,-9848.35915439,0.0001,2]
[356325647,1742278243948,-150.0,9.767e-05,2]
[356325648,1742278243958,-150.0,9.778e-05,2]
[356325649,1742278244081,-150.0,9.795e-05,2]
[356325650,1742278244099,-150.0,9.797e-05,2]
[356325651,1742278244109,-150.0,9.804e-05,2]
[356325652,1742278244119,-150.0,9.84e-05,2]
[356325653,1742278244128,-150.0,9.842e-05,2]
[356325654,1742278244138,-150.0,9.882e-05,2]
[356325655,1742278244148,-150.0,9.923e-05,2]
[356325656,1742278244158,-53146.5941594,0.0001,2]
[356325657,1742278244171,-370.60876754,0.0001,2]
[356325658,1742278244183,-17193.12521668,0.0001,2]
[356325659,1742278244195,-477.54241384,0.0001,2]
[356325660,1742278244211,-254.30152759,0.0001,2]
[356325661,1742278244223,-11535.17120398,0.0001,2]
[356325662,1742278244234,-9842.85540503,0.0001,2]
[356325663,1742278244249,-13167.52550743,0.0001,2]
[356325671,1742278245958,-253.56305743,0.0001,2]
[356325672,1742278245970,-442.77902649,0.0001,2]
[356325673,1742278245993,-1438.43008209,0.0001,2]
[356325674,1742278246027,-302.2518415,0.0001,2]
[356325675,1742278246141,-322.8916,0.0001,2]
[356325676,1742278246251,-415.415,0.0001,2]
[356325677,1742278246264,-1220.31603624,0.0001,2]
[356325678,1742278246368,-8201.5,0.0001,2]
[356325679,1742278246380,-8882.10824164,0.0001,2]
[356325680,1742278250099,300.0,9.2e-05,3]
[356325681,1742278252002,700.0,9.3e-05,3]
[356325682,1742278253956,1100.0,9.4e-05,3]
[356325683,1742278256078,1500.0,9.5e-05,3]
[356325684,1742278258177,1900.0,9.6e-05,3]
[356325685,1742278260620,300.0,9.7e-05,3]
[356325686,1742278262362,300.0,9.8e-05,3]
[356325687,1742278264458,300.0,9.9e-05,3]
[356325688,1742278266560,300.0,0.0001,3]
[356325689,1742278268074,160.14972609,0.00025288,120]
[356325690,1742278329384,273.60113068,8.219e-05,2]
[356325691,1742278329408,1180.61886932,8.219e-05,2]
[356325702,1742278713113,3000.0,8.895e-05,2]
[356325703,1742278713137,4336.50226136,8.895e-05,2]
[356325704,1742278713161,5517.12113068,8.895e-05,2]
[356325705,1742278713189,11046.37660796,8.895e-05,2]
[356325708,1742278765444,1000.0,8.892e-05,2]
[356325709,1742278828893,300.0,0.00025,120]
[356325710,1742278900942,5274.39,8.883e-05,2]
[356325711,1742278908403,-343.01,8.917e-05,2]
[356325712,1742278932478,183.99,8.883e-05,2]
[356325713,1742278932504,413.84,8.883e-05,2]
[356325714,1742278949729,4088.32,8.884e-05,2]
[356325715,1742278976783,171.52,0.00025287,120]
[356325716,1742278998462,1000.0,0.00025,120]
[356325717,1742279004388,500.0,0.00025015,120]
[356325718,1742279042852,-202.45,8.918e-05,2]
[356325721,1742279095615,386.96244591,0.00025,120]
[356325722,1742279106446,158.04,8.886e-05,2]
[356325723,1742279136057,250.0,8.881e-05,2]
[356325724,1742279137809,2114.42856325,8e-05,2]
[356325725,1742279141208,151.031805,0.00022,120]
[356325728,1742279180358,172.12,8.885e-05,2]
[356325732,1742279274984,1121.6180803,8e-05,2]
[356325733,1742279305820,376.61765301,7.888e-05,2]
[356325734,1742279318937,179.59,8.875e-05,2]
[356325737,1742279359018,-265.78676848,0.0001429,7]
[356325738,1742279359044,-3033.21566253,0.00016,8]
[356325739,1742279363138,355.79,8.822e-05,2]
[356325740,1742279366961,-155.0,0.00015949,5]
[356325741,1742279366986,-154.0,0.00015949,5]
[356325742,1742279367009,-943.0,0.00015964,5]
[356325743,1742279367030,-943.0,0.00015964,5]
[356325744,1742279367062,-946.0,0.00015964,5]
[356325745,1742279367088,-943.0,0.00015964,5]
[356325746,1742279375831,-203.0,0.00011,3]
[356325747,1742279375854,-36474.0,0.00012,3]
[356325748,1742279375893,-152.0,0.00015603,3]
[356325749,1742279376928,749.64,0.00022,120]
[356325750,1742279381674,-47.55,8.918e-05,2]
[356325751,1742279381698,-150.0,8.918e-05,2]
[356325752,1742279381721,-200.0,8.918e-05,2]
[356325753,1742279381744,-1500.0,8.923e-05,2]
[356325754,1742279381766,-217.77360996,8.924e-05,2]
[356325755,1742279381789,-250.0,8.924e-05,2]
[356325756,1742279381813,-721.76,8.949e-05,2]
[356325757,1742279381835,-679.38,8.957e-05,2]
[356325758,1742279381860,-179.59,8.986e-05,2]
[356325759,1742279381881,-250.0,9e-05,2]
[356325760,1742279381905,-179.59,9.097e-05,2]
[356325761,1742279381927,-179.59,9.208e-05,2]
[356325762,1742279381950,-179.59,9.319e-05,2]
[356325763,1742279381971,-183.03,9.453e-05,2]
[356325764,1742279381994,-150.99,9.7e-05,2]
[356325765,1742279382016,-299.99,9.7e-05,2]
[356325766,1742279382039,-854.7470078,9.7e-05,2]
[356325767,1742279382061,-151.7112,9.703e-05,2]
[356325768,1742279382086,-271.22041073,9.735e-05,2]
[356325769,1742279382108,-300.0,9.748e-05,2]
[356325770,1742279382133,-150.0,9.749e-05,2]
[356325771,1742279382156,-150.0,9.749e-05,2]
[356325772,1742279382178,-150.0,9.757e-05,2]
[356325773,1742279382199,-150.0,9.762e-05,2]
[356325774,1742279382220,-150.0,9.766e-05,2]
[356325775,1742279382243,-13301.56246118,9.77e-05,2]
[356325776,1742279382264,-250.44027292,9.793e-05,2]
[356325777,1742279382288,-150.0,9.803e-05,2]
[356325778,1742279382311,-150.0,9.804e-05,2]
[356325779,1742279382334,-150.94890671,9.804e-05,2]
[356325780,1742279382358,-584.409,9.804e-05,2]
[356325781,1742279382380,-584.409,9.804e-05,2]
[356325782,1742279382402,-584.409,9.804e-05,2]
[356325783,1742279382565,-584.409,9.804e-05,2]
[356325784,1742279382592,-250.0,9.809e-05,2]
[356325785,1742279382614,-150.0,9.809e-05,2]
[356325786,1742279382639,-150.0,9.81e-05,2]
[356325787,1742279382665,-150.0,9.815e-05,2]
[356325788,1742279382689,-150.0,9.821e-05,2]
[356325789,1742279382712,-150.0,9.826e-05,2]
[356325790,1742279382735,-150.0,9.87e-05,2]
[356325791,1742279382756,-150.0,9.87e-05,2]
[356325792,1742279382779,-150.0,9.875e-05,2]
[356325793,1742279382804,-150.0,9.891e-05,2]
[356325794,1742279382827,-405.1928,9.9e-05,2]
[356325795,1742279382849,-500.0,9.9e-05,2]
[356325796,1742279382871,-537.3803,9.9e-05,2]
[356325797,1742279382892,-1000.0,9.9e-05,2]
[356325798,1742279382914,-150.0,9.904e-05,2]
[356325799,1742279382938,-150.0,9.906e-05,2]
[356325800,1742279382962,-150.0,9.909e-05,2]
[356325801,1742279382984,-1000.0,9.909e-05,2]
[356325802,1742279383004,-1000.0,9.909e-05,2]
[356325803,1742279383027,-355.79,9.925e-05,2]
[356325804,1742279383049,-150.0,9.941e-05,2]
[356325805,1742279383070,-1212.9508,9.945e-05,2]
[356325806,1742279383091,-1000.0,9.945e-05,2]
[356325807,1742279383114,-3418.676,9.96e-05,2]
[356325808,1742279383137,-150.0,9.961e-05,2]
[356325809,1742279383159,-150.0,9.967e-05,2]
[356325810,1742279383182,-150.0,9.967e-05,2]
[356325811,1742279383205,-150.0,9.98e-05,2]
[356325812,1742279383229,-152.524,9.99e-05,2]
[356325813,1742279383253,-1000.0,9.994e-05,2]
[356325814,1742279383276,-7736.35875808,9.999e-05,2]
[356325815,1742279383300,-1058.19922056,9.999e-05,2]
[356325816,1742279383323,-500.0,9.999e-05,2]
[356325817,1742279383347,-152.67997133,9.999e-05,2]
[356325818,1742279383368,-513.0,0.0001,2]
[356325819,1742279383390,-1000.0,0.0001,2]
[356325820,1742279383415,-14408.14584972,0.0001,2]
[356325863,1742279432460,-503.4735659,9.431e-05,2]
[356325864,1742279432681,-1496.5264341,9.431e-05,2]
[356325865,1742279432692,-250.0,9.565e-05,2]
[356325866,1742279432701,-150.0,9.565e-05,2]
[356325867,1742279432711,-4454.23175576,9.7e-05,2]
[356325868,1742279432720,-641.0602558,9.7e-05,2]
[356325869,1742279432730,-250.0,9.787e-05,2]
[356325870,1742279432739,-300.0,9.803e-05,2]
[356325871,1742279432748,-584.409,9.804e-05,2]
[356325872,1742279432757,-584.409,9.804e-05,2]
[356325873,1742279432768,-584.409,9.804e-05,2]
[356325874,1742279432777,-584.409,9.804e-05,2]
[356325875,1742279432787,-584.409,9.804e-05,2]
[356325876,1742279432797,-584.409,9.804e-05,2]
[356325877,1742279432807,-155.22910077,9.973e-05,2]
[356325878,1742279432817,-793.993,9.99e-05,2]
[356325879,1742279432827,-150.0,9.999e-05,2]
[356325881,1742279432836,-561.0,0.0001,2]
[356325883,1742279432846,-299.99,0.0001,2]
[356325885,1742279432855,-1269.24040685,0.0001,2]
[356325907,1742279438371,-2778.04521115,0.0001,2]
[356325908,1742279438404,-0.20626381,0.0001,2]
[356325909,1742279438415,-3983.39939956,0.0001,2]
[356325910,1742279438425,-7358.05436051,0.0001,2]
[356325911,1742279438441,-1508.10057948,0.0001,2]
[356325912,1742279438452,-425.45881586,0.0001,2]
[356325913,1742279439322,-28922.46176715,0.0001,2]
[356325914,1742279439334,-1506.05613862,0.0001,2]
[356325915,1742279439346,-641.17075531,0.0001,2]
[356325916,1742279439357,-4146.75,0.0001,2]
[356325917,1742279439369,-606.4717904,0.0001,2]
[356325920,1742279441148,-305.16904402,0.0001,2]
[356325921,1742279441161,-324.32139399,0.0001,2]
[356325922,1742279441172,-1285.09837437,0.0001,2]
[356325925,1742279443197,-683.0,0.0001,2]
[356325926,1742279443208,-43174.3509353,0.0001,2]
[356325927,1742279443319,-80.92907212,0.0001,2]
[356325933,1742279444207,-971.4300002,0.0001,2]
[356325934,1742279444219,-74164.38696688,0.0001,2]
[356325935,1742279444240,-64.21025857,0.0001,2]
[356325936,1742279446161,-1000.0,9.9e-05,2]
[356325937,1742279446171,-3150.83,0.0001,2]
[356325938,1742279446184,-1161.05855209,0.0001,2]
[356325939,1742279446267,-527.077714,0.0001,2]
[356325940,1742279446280,-4107.80861475,0.0001,2]
[356325941,1742279446358,-106207.47441039,0.0001,2]
[356325942,1742279446445,-5148.41904232,0.0001,2]
[356325943,1742279446457,-1543.49445055,0.0001,2]
[356325944,1742279446469,-475.475,0.0001,2]
[356325945,1742279461044,1516.24,8.219e-05,2]
[356325948,1742279719011,-202.45,9.456e-05,2]
[356325949,1742279742637,-202.45,9.456e-05,2]
[356325952,1742279853963,-202.45,9.456e-05,2]
[356325959,1742279934292,183.67,0.00016493,30]
[356325966,1742280147713,-202.45,8.963e-05,2]
[356325971,1742280184235,-202.45,8.962e-05,2]
[356325972,1742280189939,2000.0,8.787e-05,2]
[356325973,1742280289579,-250.0,8.962e-05,2]
[356325974,1742280289602,-250.0,8.963e-05,2]
[356325975,1742280289615,-1500.0,8.963e-05,2]
[356325976,1742280307984,170.51,8.823e-05,2]
[356325977,1742280313619,250.0,8.797e-05,2]
[356325978,1742280418918,-202.45,8.963e-05,2]
[356325979,1742280422481,-202.45,8.962e-05,2]
[356325980,1742280434710,2000.0,8.789e-05,2]
[356325981,1742280445854,975.2,8.763e-05,2]
[356325982,1742280471041,781.21,8.77e-05,2]
[356325986,1742280492482,878.0472,8.863e-05,2]
[356325987,1742280533093,1529.72,8.219e-05,2]
[356325990,1742280547302,-300.0,8.962e-05,2]
[356325991,1742280547331,-7507.68610578,8.963e-05,2]
[356325992,1742280547369,-7807.68610578,8.963e-05,2]
[356325993,1742280547405,-2055.42699449,8.963e-05,2]
[356325994,1742280587735,-202.45,8.963e-05,2]
[356325995,1742280592773,-202.45,8.963e-05,2]
[356326003,1742280632544,-3969.40079395,8.963e-05,2]
[356326004,1742280632554,-250.0,9e-05,2]
[356326005,1742280632564,-541.01,9.052e-05,2]
[356326006,1742280632575,-1000.0,9.134e-05,2]
[356326007,1742280632585,-5052.07705135,9.156e-05,2]
[356326008,1742280632594,-2734.941,9.267e-05,2]
[356326009,1742280632604,-206.68,9.356e-05,2]
[356326010,1742280632613,-157.8173,9.356e-05,2]
[356326011,1742280632623,-1000.0,9.356e-05,2]
[356326012,1742280632633,-1316.3992,9.356e-05,2]
[356326013,1742280632642,-4466.61006141,9.445e-05,2]
[356326014,1742280632667,-777.13478051,9.445e-05,2]
[356326015,1742280632719,-2792.95515809,9.445e-05,2]
[356326016,1742280632729,-150.0,9.454e-05,2]
[356326017,1742280632739,-500.0,9.455e-05,2]
[356326018,1742280632748,-500.0,9.455e-05,2]
[356326019,1742280632758,-500.0,9.455e-05,2]
[356326020,1742280632767,-500.0,9.455e-05,2]
[356326021,1742280632778,-500.0,9.455e-05,2]
[356326022,1742280632787,-500.0,9.455e-05,2]
[356326023,1742280632796,-500.0,9.455e-05,2]
[356326024,1742280632807,-500.0,9.455e-05,2]
[356326025,1742280632817,-500.0,9.455e-05,2]
[356326026,1742280632827,-500.0,9.455e-05,2]
[356326027,1742280632836,-500.0,9.455e-05,2]
[356326028,1742280632846,-500.0,9.455e-05,2]
[356326030,1742280632856,-500.0,9.455e-05,2]
[356326032,1742280632866,-500.0,9.455e-05,2]
[356326034,1742280632875,-500.0,9.455e-05,2]
[356326036,1742280632885,-500.0,9.455e-05,2]
[356326038,1742280632895,-500.0,9.455e-05,2]
[356326040,1742280632905,-500.0,9.455e-05,2]
[356326041,1742280632915,-500.0,9.455e-05,2]
[356326042,1742280632925,-500.0,9.455e-05,2]
[356326043,1742280632935,-500.0,9.455e-05,2]
[356326044,1742280632944,-500.0,9.455e-05,2]
[356326045,1742280632954,-500.0,9.455e-05,2]
[356326046,1742280632963,-500.0,9.455e-05,2]
[356326047,1742280632973,-500.0,9.455e-05,2]
[356326048,1742280632983,-500.0,9.455e-05,2]
[356326049,1742280632993,-500.0,9.455e-05,2]
[356326050,1742280633003,-152.78443113,9.455e-05,2]
[356326051,1742280633015,-500.0,9.455e-05,2]
[356326052,1742280633025,-2868.23311769,9.455e-05,2]
[356326053,1742280633035,-1388.83038536,9.456e-05,2]
[356326055,1742280633045,-892.65,9.456e-05,2]
[356326057,1742280633057,-976261.02971428,9.456e-05,2]
[356326071,1742280638289,-1500.02602926,9.456e-05,2]
[356326072,1742280638301,-452.75999506,9.456e-05,2]
[356326073,1742280638507,-5361.46370153,9.456e-05,2]
[356326078,1742280640664,-1162.32300624,9.456e-05,2]
[356326079,1742280640686,-3302.74343688,9.456e-05,2]
[356326080,1742280640698,-354.40932023,9.456e-05,2]
[356326083,1742280641577,-688.84383166,9.456e-05,2]
[356326084,1742280641609,-404.760008,9.456e-05,2]
[356326113,1742280644801,-569.04132258,9.456e-05,2]
[356326114,1742280644819,-451.22072221,9.456e-05,2]
[356326121,1742280646333,-559.35,9.456e-05,2]
[356326122,1742280646345,-6165.29104752,9.456e-05,2]
[356326123,1742280646476,-287.82957393,9.456e-05,2]
[356326124,1742280646562,-1428.83740018,9.456e-05,2]
[356326126,1742280680595,-171.54334711,9.005e-05,2]
[356326127,1742280686714,-28.45665289,9.005e-05,2]
[356326128,1742280686740,-143.08669422,9.356e-05,2]
[356326131,1742280739088,-168.8834848,9.356e-05,2]
[356326132,1742280747296,-168.8834848,8.947e-05,2]
[356326133,1742280750156,-168.8834848,8.947e-05,2]
[356326135,1742280791981,-150.0,8.947e-05,2]
[356326137,1742280824070,-150.0,8.947e-05,2]
[356326138,1742280847712,-211.16617407,8.947e-05,2]
[356326139,1742280850612,150.0,8.902e-05,2]
[356326142,1742280859583,150.0,8.902e-05,2]
[356326144,1742280903583,1000.0,9.4e-05,30]
[356326145,1742280904754,-211.16617407,8.947e-05,2]
[356326146,1742280986311,270.5,8.861e-05,2]
[356326147,1742281002704,300.0,8.861e-05,2]
[356326148,1742281101040,170.32,0.0001,3]
[356326149,1742281127375,305.66,8.861e-05,2]
[356326150,1742281130261,176.09,8.861e-05,2]
[356326151,1742281186593,1000.0,8.861e-05,2]
[356326152,1742281330656,-211.16617407,8.947e-05,2]
[356326153,1742281342375,-53.03450819,8.947e-05,2]
[356326154,1742281342400,-158.13166588,9.132e-05,2]
[356326155,1742281372533,-6.77833412,9.132e-05,2]
[356326156,1742281372557,-204.38783995,9.256e-05,2]
[356326157,1742281386259,-211.16617407,9.256e-05,2]
[356326158,1742281452650,1174.1,8.828e-05,2]
[356326159,1742281500340,213.47,8.829e-05,2]
[356326160,1742281650725,1507.3,8.219e-05,2]
[356326167,1742281831603,-259.4143,9.256e-05,2]
[356326168,1742281831613,-183.93,9.256e-05,2]
[356326169,1742281831623,-150.0,9.355e-05,2]
[356326170,1742281831633,-282.970421,9.355e-05,2]
[356326171,1742281831651,-17.029579,9.355e-05,2]
[356326172,1742281831661,-13097.21452098,9.356e-05,2]
[356326173,1742281831671,-856.0322,9.356e-05,2]
[356326174,1742281831680,-5036.4725,9.356e-05,2]
[356326175,1742281831690,-500.0,9.356e-05,2]
[356326176,1742281831700,-1192.5779,9.356e-05,2]
[356326177,1742281831710,-276.5665,9.356e-05,2]
[356326178,1742281831720,-301.4645,9.356e-05,2]
[356326179,1742281831730,-7226.4375,9.356e-05,2]
[356326180,1742281831739,-347.8229,9.356e-05,2]
[356326181,1742281831749,-26786.4092,9.356e-05,2]
[356326182,1742281831759,-151.6101848,9.356e-05,2]
[356326183,1742281831769,-971.00703443,9.4e-05,2]
[356326184,1742281831781,-5586.35736786,9.446e-05,2]
[356326185,1742281831800,-4798.037793,9.446e-05,2]
[356326186,1742281831810,-1222.0,9.45e-05,2]
[356326187,1742281831820,-1000.0,9.45e-05,2]
[356326188,1742281831829,-1000.0,9.45e-05,2]
[356326189,1742281831839,-1002.0,9.45e-05,2]
[356326190,1742281831849,-860.0,9.45e-05,2]
[356326191,1742281831859,-182.69,9.453e-05,2]
[356326192,1742281831868,-2561.95531315,9.456e-05,2]
[356326203,1742281837449,-17365.63091135,9.456e-05,2]
[356326204,1742281837598,-2434.78,9.456e-05,2]
[356326205,1742281837610,-631.82481623,9.456e-05,2]
[356326231,1742281840557,-787.36,9.456e-05,2]
[356326232,1742281840570,-2295.0,9.456e-05,2]
[356326233,1742281840581,-2747.0,9.456e-05,2]
[356326256,1742281844020,-441.85518482,9.356e-05,2]
[356326258,1742281844030,-55.20542911,9.456e-05,2]
[356326265,1742281845719,-381.6,9.456e-05,2]
[356326266,1742281845782,-5994.45179144,9.456e-05,2]
[356326267,1742281845949,-3078.27529477,9.456e-05,2]
[356326268,1742281865929,-150.0,9.455e-05,2]
[356326269,1742281884262,-150.0,9.455e-05,2]
[356326270,1742281884291,-43.0,9.456e-05,2]
[356326271,1742281893759,-150.0,9.456e-05,2]
[356326273,1742281901866,1184.57760181,0.00022,120]
[356326274,1742281907469,-202.68096442,9.356e-05,2]
[356326275,1742281915120,-270.26732407,9.356e-05,2]
[356326277,1742281923364,-150.0,9.356e-05,2]
[356326278,1742281924960,-161.0859924,9.356e-05,2]
[356326280,1742281939153,-300.0,9.356e-05,2]
[356326281,1742281941356,250.0,8.848e-05,2]
[356326282,1742281947167,-200.0,9.356e-05,2]
[356326284,1742281984470,-151.0,9.309e-05,2]
[356326285,1742282010483,-215.42,9.309e-05,2]
[356326286,1742282043131,-150.0,9.355e-05,2]
[356326289,1742282051516,-150.0,9.355e-05,2]
[356326290,1742282051543,-50.0,9.356e-05,2]
[356326291,1742282087769,-201.0,9.309e-05,2]
[356326292,1742282135153,-150.0,9.355e-05,2]
[356326293,1742282135374,-52.07065786,9.356e-05,2]
[356326294,1742282162993,-166.342,9.355e-05,2]
[356326295,1742282166008,-133.658,9.355e-05,2]
[356326296,1742282166036,-115.22510112,9.356e-05,2]
[356326297,1742282186815,-200.0,9.356e-05,2]
[356326299,1742282219476,256.31,8.882e-05,2]
[356326300,1742282230862,-317.2,9.356e-05,2]
[356326301,1742282250039,168.55,8.854e-05,2]
[356326302,1742282309042,151.03180599,0.00022,120]
[356326303,1742282313872,-200.15446602,9.267e-05,2]
[356326304,1742282313900,-33.98160406,9.267e-05,2]
[356326305,1742282322063,-275.5169924,9.267e-05,2]
[356326307,1742282348083,1000.0,8.852e-05,2]
[356326308,1742282404744,-150.0,9e-05,2]
[356326309,1742282437718,-100.0,9e-05,2]
[356326310,1742282437745,-195.629286,9.267e-05,2]
[356326311,1742282472835,-400.0,9.267e-05,2]
[356326312,1742282487326,-237.84910129,9.267e-05,2]
[356326313,1742282488516,-708.05049632,9.267e-05,2]
[356326314,1742282507223,-166.66,9.119e-05,2]
[356326315,1742282507249,-651.6598,9.267e-05,2]
[356326316,1742282530916,-706.88671993,9.267e-05,2]
[356326317,1742282530941,-254.66272763,9.356e-05,2]
[356326318,1742282532634,-2537.00545244,9.356e-05,2]
[356326319,1742282590085,-528.260964,9.22e-05,2]
[356326320,1742282590107,-12028.35421993,9.356e-05,2]
[356326321,1742282590130,-1232.3533,9.356e-05,2]
[356326322,1742282590152,-268.5987,9.356e-05,2]
[356326323,1742282590174,-481.47,9.356e-05,2]
[356326324,1742282590196,-2410.5689,9.356e-05,2]
[356326325,1742282590219,-1161.0,9.4e-05,2]
[356326326,1742282590240,-166.66,9.42e-05,2]
[356326327,1742282590261,-500.31002673,9.433e-05,2]
[356326328,1742282590283,-503.1429381,9.433e-05,2]
[356326329,1742282590306,-150.0,9.455e-05,2]
[356326330,1742282590330,-15069.28095124,9.456e-05,2]
[356326331,1742282591219,-181.7097,9.456e-05,2]
[356326332,1742282605789,1007.92,8.857e-05,2]
[356326333,1742282606003,1007.92,8.88e-05,2]